fUSD/lending_fUSD_20250617
["ID","MTS","AMOUNT","RATE_DAILY","PERIOD"]
[366297833,1750179049588,-539.88,0.00016438,2]
[366297835,1750179049598,-3767.06,0.00016438,2]
[366297837,1750179049608,-298.03286065,0.00016438,2]
[366297839,1750179049624,-1003.04,0.00016438,2]
[366297841,1750179049634,-1276.78,0.00016438,2]
[366297843,1750179049645,-490.0,0.00016438,2]
[366297846,1750179049656,-490.0,0.00016438,2]
[366297848,1750179049666,-490.0,0.00016438,2]
[366297850,1750179049676,-2037.45,0.00016438,2]
[366297852,1750179049689,-490.0,0.00016438,2]
[366297854,1750179049700,-862.08,0.00016438,2]
[366297856,1750179049710,-786.22,0.00016438,2]
[366297858,1750179049721,-3293.24,0.00016438,2]
[366297860,1750179049732,-860.38,0.00016438,2]
[366297862,1750179049743,-490.0,0.00016438,2]
[366297864,1750179049754,-490.0,0.00016438,2]
[366297866,1750179049765,-933.44,0.00016438,2]
[366297868,1750179049775,-500.0,0.00016438,2]
[366297870,1750179049786,-1943.87,0.00016438,2]
[366297872,1750179049797,-490.0,0.00016438,2]
[366297874,1750179049809,-500.0,0.00016438,2]
[366297876,1750179049820,-1763.65,0.00016438,2]
[366297878,1750179049830,-403.84945272,0.00016438,2]
[366297881,1750179049840,-1006.28,0.00016438,2]
[366297883,1750179049851,-491.37023794,0.00016438,2]
[366297885,1750179049862,-151.0,0.00016438,2]
[366297887,1750179049873,-490.0,0.00016438,2]
[366297889,1750179049884,-151.0,0.00016438,2]
[366297891,1750179049894,-621.92,0.00016438,2]
[366297893,1750179049904,-151.0,0.00016438,2]
[366297895,1750179049915,-490.0,0.00016438,2]
[366297897,1750179049925,-16188.56,0.00016438,2]
[366297899,1750179049938,-490.0,0.00016438,2]
[366297901,1750179049948,-431.37542806,0.00016438,2]
[366297903,1750179049958,-490.0,0.00016438,2]
[366297905,1750179049968,-151.0,0.00016438,2]
[366297907,1750179049979,-151.0,0.00016438,2]
[366297909,1750179049989,-152.554459,0.00016438,2]
[366297911,1750179050000,-2258.57,0.00016438,2]
[366297913,1750179050010,-158.501302,0.00016438,2]
[366297915,1750179050021,-509.66,0.00016438,2]
[366297918,1750179050032,-20209.94,0.00016438,2]
[366297920,1750179050042,-490.0,0.00016438,2]
[366297922,1750179050052,-151.0,0.00016438,2]
[366297956,1750179050365,-1318.58,0.00016438,2]
[366297958,1750179050388,-151.0,0.00016438,2]
[366297960,1750179050397,-490.0,0.00016438,2]
[366297962,1750179050407,-606.99,0.00016438,2]
[366297964,1750179050417,-151.0,0.00016438,2]
[366297966,1750179050426,-857.76,0.00016438,2]
[366297969,1750179050436,-490.0,0.00016438,2]
[366297971,1750179050446,-490.0,0.00016438,2]
[366297973,1750179050456,-490.63,0.00016438,2]
[366297975,1750179050466,-490.0,0.00016438,2]
[366297977,1750179050476,-1055.34,0.00016438,2]
[366297979,1750179050486,-1545.83,0.00016438,2]
[366297981,1750179050501,-490.0,0.00016438,2]
[366297983,1750179050510,-490.0,0.00016438,2]
[366297985,1750179050520,-490.0,0.00016438,2]
[366297987,1750179050531,-434.71693575,0.00016438,2]
[366297989,1750179050540,-490.0,0.00016438,2]
[366297991,1750179050550,-2099.82,0.00016438,2]
[366297993,1750179050559,-1128.97,0.00016438,2]
[366297995,1750179050570,-555.94,0.00016438,2]
[366297997,1750179050579,-490.0,0.00016438,2]
[366297999,1750179050590,-563.40162426,0.00016438,2]
[366298001,1750179050599,-1128.13,0.00016438,2]
[366298003,1750179050609,-687.36,0.00016438,2]
[366298005,1750179050619,-798.34,0.00016438,2]
[366298007,1750179050629,-490.0,0.00016438,2]
[366298009,1750179050639,-3699.17,0.00016438,2]
[366298011,1750179050649,-4469.21,0.00016438,2]
[366298013,1750179050660,-490.0,0.00016438,2]
[366298015,1750179050670,-490.0,0.00016438,2]
[366298017,1750179050681,-4469.21,0.00016438,2]
[366298019,1750179050691,-4469.21,0.00016438,2]
[366298021,1750179050701,-490.0,0.00016438,2]
[366298023,1750179050710,-1296.33,0.00016438,2]
[366298026,1750179050721,-4469.21,0.00016438,2]
[366298028,1750179050731,-490.0,0.00016438,2]
[366298030,1750179050741,-4469.21,0.00016438,2]
[366298032,1750179050750,-4469.21,0.00016438,2]
[366298034,1750179050760,-4469.21,0.00016438,2]
[366298036,1750179050770,-4469.21,0.00016438,2]
[366298038,1750179050781,-3829.8,0.00016438,2]
[366298040,1750179050791,-4469.21,0.00016438,2]
[366298042,1750179050800,-584.01,0.00016438,2]
[366298044,1750179050811,-4469.21,0.00016438,2]
[366298046,1750179050820,-4469.21,0.00016438,2]
[366298048,1750179050830,-2163.52,0.00016438,2]
[366298050,1750179050840,-490.0,0.00016438,2]
[366298052,1750179050850,-1288.51,0.00016438,2]
[366298054,1750179050860,-490.0,0.00016438,2]
[366298056,1750179050870,-4469.21,0.00016438,2]
[366298058,1750179050881,-490.0,0.00016438,2]
[366298060,1750179050891,-722.0,0.00016438,2]
[366298062,1750179050901,-490.0,0.00016438,2]
[366298064,1750179050910,-490.0,0.00016438,2]
[366298066,1750179050920,-303.37834833,0.00016438,2]
[366298068,1750179050930,-490.0,0.00016438,2]
[366298070,1750179050941,-490.0,0.00016438,2]
[366298072,1750179050950,-2148.54,0.00016438,2]
[366298074,1750179050960,-495.38334216,0.00016438,2]
[366298076,1750179050970,-3204.05,0.00016438,2]
[366298078,1750179050979,-490.0,0.00016438,2]
[366298080,1750179050989,-9744.48,0.00016438,2]
[366298082,1750179050999,-2390.88,0.00016438,2]
[366298084,1750179051009,-486.72004631,0.00016438,2]
[366298086,1750179051019,-490.0,0.00016438,2]
[366298088,1750179051028,-1932.87,0.00016438,2]
[366298090,1750179051038,-490.0,0.00016438,2]
[366298092,1750179051048,-26849.5,0.00016438,2]
[366298094,1750179051058,-490.0,0.00016438,2]
[366298096,1750179051068,-490.0,0.00016438,2]
[366298098,1750179051078,-490.0,0.00016438,2]
[366298100,1750179051087,-490.0,0.00016438,2]
[366298102,1750179051097,-820.05,0.00016438,2]
[366298104,1750179051107,-490.0,0.00016438,2]
[366298106,1750179051117,-490.0,0.00016438,2]
[366298108,1750179051126,-490.0,0.00016438,2]
[366298111,1750179051136,-490.32646069,0.00016438,2]
[366298113,1750179051149,-490.43524426,0.00016438,2]
[366298115,1750179051159,-2774.47,0.00016438,2]
[366298117,1750179051169,-490.0,0.00016438,2]
[366298119,1750179051179,-155.80956868,0.00016438,2]
[366298121,1750179051191,-490.0,0.00016438,2]
[366298123,1750179051201,-490.0,0.00016438,2]
[366298125,1750179051215,-1469.34,0.00016438,2]
[366298127,1750179051225,-1174.52,0.00016438,2]
[366298129,1750179051235,-490.0,0.00016438,2]
[366298131,1750179051245,-504.82,0.00016438,2]
[366298133,1750179051255,-490.0,0.00016438,2]
[366298135,1750179051265,-490.0,0.00016438,2]
[366298137,1750179051275,-396.46654518,0.00016438,2]
[366298139,1750179051285,-719.86,0.00016438,2]
[366298141,1750179051295,-1521.85,0.00016438,2]
[366298143,1750179051305,-480.0,0.00016438,2]
[366298144,1750179051315,-490.0,0.00016438,2]
[366298145,1750179051325,-490.0,0.00016438,2]
[366298146,1750179051334,-490.0,0.00016438,2]
[366298147,1750179051344,-490.0,0.00016438,2]
[366298148,1750179051355,-151.0,0.00016438,2]
[366298149,1750179051365,-151.0,0.00016438,2]
[366298150,1750179051375,-490.0,0.00016438,2]
[366298151,1750179051386,-3292.56,0.00016438,2]
[366298152,1750179051396,-151.0,0.00016438,2]
[366298153,1750179051406,-151.0,0.00016438,2]
[366298154,1750179051416,-490.0,0.00016438,2]
[366298155,1750179051426,-490.0,0.00016438,2]
[366298156,1750179051438,-490.0,0.00016438,2]
[366298157,1750179051448,-490.0,0.00016438,2]
[366298158,1750179051458,-1176.87,0.00016438,2]
[366298159,1750179051468,-490.0,0.00016438,2]
[366298160,1750179051477,-151.0,0.00016438,2]
[366298161,1750179051489,-490.0,0.00016438,2]
[366298162,1750179051502,-490.0,0.00016438,2]
[366298163,1750179051511,-151.0,0.00016438,2]
[366298164,1750179051522,-151.0,0.00016438,2]
[366298165,1750179051532,-1249.62,0.00016438,2]
[366298166,1750179051543,-2167.87,0.00016438,2]
[366298167,1750179051553,-490.0,0.00016438,2]
[366298168,1750179051563,-490.0,0.00016438,2]
[366298169,1750179051574,-490.0,0.00016438,2]
[366298170,1750179051584,-151.0,0.00016438,2]
[366298171,1750179051594,-3751.94,0.00016438,2]
[366298172,1750179051605,-490.0,0.00016438,2]
[366298173,1750179051616,-4943.53,0.00016438,2]
[366298174,1750179051626,-490.0,0.00016438,2]
[366298175,1750179051635,-490.0,0.00016438,2]
[366298176,1750179051646,-2268.42,0.00016438,2]
[366298177,1750179051656,-490.0,0.00016438,2]
[366298178,1750179051666,-490.0,0.00016438,2]
[366298179,1750179051675,-490.0,0.00016438,2]
[366298180,1750179051686,-438.8538656,0.00016438,2]
[366298181,1750179051697,-507.83307569,0.00016438,2]
[366298182,1750179051707,-558.39788631,0.00016438,2]
[366298183,1750179051718,-2213.64,0.00016438,2]
[366298184,1750179051728,-481.97038062,0.00016438,2]
[366298185,1750179051738,-693.17,0.00016438,2]
[366298186,1750179051749,-911.15,0.00016438,2]
[366298187,1750179051759,-251.89374371,0.00016438,2]
[366298188,1750179051770,-490.0,0.00016438,2]
[366298189,1750179051780,-858.38,0.00016438,2]
[366298190,1750179051790,-1527.5,0.00016438,2]
[366298191,1750179051800,-490.0,0.00016438,2]
[366298192,1750179051810,-248.92294697,0.00016438,2]
[366298193,1750179051821,-490.0,0.00016438,2]
[366298194,1750179051831,-490.0,0.00016438,2]
[366298195,1750179051841,-2502.33,0.00016438,2]
[366298196,1750179051851,-2894.68,0.00016438,2]
[366298197,1750179051861,-1748.33,0.00016438,2]
[366298198,1750179051872,-490.0,0.00016438,2]
[366298199,1750179051882,-151.0,0.00016438,2]
[366298200,1750179051892,-151.0,0.00016438,2]
[366298201,1750179051902,-490.0,0.00016438,2]
[366298202,1750179051912,-943.35,0.00016438,2]
[366298203,1750179051923,-490.0,0.00016438,2]
[366298204,1750179051933,-500.0,0.00016438,2]
[366298205,1750179051944,-490.0,0.00016438,2]
[366298206,1750179051954,-629.69,0.00016438,2]
[366298207,1750179051964,-490.0,0.00016438,2]
[366298208,1750179051974,-615.49,0.00016438,2]
[366298209,1750179051984,-490.0,0.00016438,2]
[366298210,1750179051995,-490.0,0.00016438,2]
[366298211,1750179052005,-6512.92,0.00016438,2]
[366298212,1750179052016,-490.0,0.00016438,2]
[366298213,1750179052026,-490.0,0.00016438,2]
[366298214,1750179052037,-1753.92,0.00016438,2]
[366298215,1750179052047,-6663.51,0.00016438,2]
[366298216,1750179052058,-490.0,0.00016438,2]
[366298217,1750179052068,-490.0,0.00016438,2]
[366298218,1750179052079,-490.0,0.00016438,2]
[366298219,1750179052088,-490.0,0.00016438,2]
[366298220,1750179052098,-490.0,0.00016438,2]
[366298221,1750179052108,-490.0,0.00016438,2]
[366298222,1750179052118,-490.0,0.00016438,2]
[366298223,1750179052129,-1568.75,0.00016438,2]
[366298224,1750179052137,-490.0,0.00016438,2]
[366298225,1750179052147,-491.11056352,0.00016438,2]
[366298226,1750179052155,-957.43,0.00016438,2]
[366298227,1750179052165,-1320.82,0.00016438,2]
[366298228,1750179052174,-615.75,0.00016438,2]
[366298229,1750179052183,-490.0,0.00016438,2]
[366298230,1750179052195,-490.0,0.00016438,2]
[366298231,1750179052205,-490.0,0.00016438,2]
[366298232,1750179052215,-490.0,0.00016438,2]
[366298234,1750179052225,-1295.9,0.00016438,2]
[366298236,1750179052236,-1438.39,0.00016438,2]
[366298239,1750179052246,-490.0,0.00016438,2]
[366298240,1750179052256,-490.0,0.00016438,2]
[366298242,1750179052267,-490.0,0.00016438,2]
[366298244,1750179052278,-490.0,0.00016438,2]
[366298246,1750179052288,-151.0,0.00016438,2]
[366298248,1750179052300,-1581.93,0.00016438,2]
[366298250,1750179052310,-246.597821,0.00016438,2]
[366298252,1750179052320,-1408.83,0.00016438,2]
[366298254,1750179052330,-731.66,0.00016438,2]
[366298256,1750179052340,-693.7,0.00016438,2]
[366298258,1750179052350,-490.0,0.00016438,2]
[366298260,1750179052360,-807.72,0.00016438,2]
[366298262,1750179052370,-571.46,0.00016438,2]
[366298264,1750179052380,-151.0,0.00016438,2]
[366298266,1750179052390,-490.0,0.00016438,2]
[366298268,1750179052400,-151.0,0.00016438,2]
[366298270,1750179052410,-2139.69,0.00016438,2]
[366298272,1750179052420,-490.0,0.00016438,2]
[366298274,1750179052431,-151.0,0.00016438,2]
[366298276,1750179052441,-151.0,0.00016438,2]
[366298278,1750179052452,-483.49227103,0.00016438,2]
[366298280,1750179052462,-490.0,0.00016438,2]
[366298282,1750179052473,-490.0,0.00016438,2]
[366298284,1750179052484,-490.0,0.00016438,2]
[366298286,1750179052494,-490.0,0.00016438,2]
[366298288,1750179052504,-510.1,0.00016438,2]
[366298290,1750179052514,-490.0,0.00016438,2]
[366298292,1750179052525,-490.0,0.00016438,2]
[366298294,1750179052534,-490.0,0.00016438,2]
[366298296,1750179052544,-719.96,0.00016438,2]
[366298298,1750179052555,-1072.37,0.00016438,2]
[366298300,1750179052565,-490.0,0.00016438,2]
[366298302,1750179052577,-490.0,0.00016438,2]
[366298304,1750179052587,-713.6,0.00016438,2]
[366298306,1750179052596,-490.0,0.00016438,2]
[366298308,1750179052607,-490.0,0.00016438,2]
[366298310,1750179052617,-490.0,0.00016438,2]
[366298312,1750179052628,-1526.95,0.00016438,2]
[366298314,1750179052637,-490.0,0.00016438,2]
[366298316,1750179052648,-722.84,0.00016438,2]
[366298318,1750179052658,-490.0,0.00016438,2]
[366298320,1750179052668,-490.0,0.00016438,2]
[366298322,1750179052679,-3248.68,0.00016438,2]
[366298324,1750179052690,-1015.68,0.00016438,2]
[366298326,1750179052700,-490.0,0.00016438,2]
[366298328,1750179052711,-490.0,0.00016438,2]
[366298330,1750179052721,-1028.31,0.00016438,2]
[366298332,1750179052731,-490.0,0.00016438,2]
[366298334,1750179052741,-1488.81,0.00016438,2]
[366298336,1750179052752,-490.0,0.00016438,2]
[366298338,1750179052763,-490.0,0.00016438,2]
[366298340,1750179052773,-490.0,0.00016438,2]
[366298342,1750179052784,-490.0,0.00016438,2]
[366298344,1750179052793,-490.0,0.00016438,2]
[366298357,1750179052917,-490.0,0.00016438,2]
[366298359,1750179052927,-490.0,0.00016438,2]
[366298361,1750179052937,-490.0,0.00016438,2]
[366298363,1750179052949,-490.0,0.00016438,2]
[366298365,1750179052959,-490.0,0.00016438,2]
[366298367,1750179052969,-152.901366,0.00016438,2]
[366298369,1750179052979,-152.901366,0.00016438,2]
[366298371,1750179052989,-490.0,0.00016438,2]
[366298374,1750179053000,-152.901366,0.00016438,2]
[366298376,1750179053011,-1093.69,0.00016438,2]
[366298378,1750179053021,-2674.76,0.00016438,2]
[366298380,1750179053031,-3557.82,0.00016438,2]
[366298382,1750179053041,-490.0,0.00016438,2]
[366298384,1750179053052,-463.6080084,0.00016438,2]
[366298386,1750179053062,-490.0,0.00016438,2]
[366298388,1750179053071,-490.0,0.00016438,2]
[366298390,1750179053082,-152.901366,0.00016438,2]
[366298392,1750179053092,-152.901366,0.00016438,2]
[366298394,1750179053101,-1892.28,0.00016438,2]
[366298396,1750179053112,-152.901366,0.00016438,2]
[366298398,1750179053121,-839.17,0.00016438,2]
[366298400,1750179053130,-490.0,0.00016438,2]
[366298402,1750179053140,-571.43,0.00016438,2]
[366298404,1750179053151,-688.82,0.00016438,2]
[366298406,1750179053162,-490.0,0.00016438,2]
[366298408,1750179053172,-796.61,0.00016438,2]
[366298410,1750179053181,-490.0,0.00016438,2]
[366298412,1750179053193,-1263.84,0.00016438,2]
[366298414,1750179053202,-490.0,0.00016438,2]
[366298416,1750179053212,-151.0,0.00016438,2]
[366298418,1750179053223,-490.0,0.00016438,2]
[366298420,1750179053232,-151.0,0.00016438,2]
[366298422,1750179053241,-490.0,0.00016438,2]
[366298423,1750179053251,-859.67,0.00016438,2]
[366298425,1750179053263,-490.0,0.00016438,2]
[366298427,1750179053273,-151.0,0.00016438,2]
[366298429,1750179053283,-1339.04,0.00016438,2]
[366298431,1750179053293,-490.0,0.00016438,2]
[366298433,1750179053303,-7357.56,0.00016438,2]
[366298435,1750179053314,-151.0,0.00016438,2]
[366298437,1750179053324,-490.0,0.00016438,2]
[366298440,1750179053335,-1533.16,0.00016438,2]
[366298442,1750179053347,-490.0,0.00016438,2]
[366298443,1750179053358,-151.0,0.00016438,2]
[366298445,1750179053369,-490.0,0.00016438,2]
[366298447,1750179053380,-490.0,0.00016438,2]
[366298449,1750179053393,-490.0,0.00016438,2]
[366298452,1750179053405,-490.0,0.00016438,2]
[366298454,1750179053418,-490.0,0.00016438,2]
[366298456,1750179053429,-490.0,0.00016438,2]
[366298458,1750179053443,-490.0,0.00016438,2]
[366298460,1750179053453,-497.71,0.00016438,2]
[366298462,1750179053464,-800.35,0.00016438,2]
[366298464,1750179053474,-670.22,0.00016438,2]
[366298466,1750179053485,-490.0,0.00016438,2]
[366298468,1750179053500,-1325.05,0.00016438,2]
[366298470,1750179053510,-490.0,0.00016438,2]
[366298472,1750179053520,-664.49,0.00016438,2]
[366298474,1750179053530,-490.0,0.00016438,2]
[366298476,1750179053541,-490.0,0.00016438,2]
[366298477,1750179053550,-490.0,0.00016438,2]
[366298479,1750179053560,-490.0,0.00016438,2]
[366298481,1750179053570,-490.0,0.00016438,2]
[366298483,1750179053581,-490.0,0.00016438,2]
[366298485,1750179053590,-204.48871146,0.00016438,2]
[366298487,1750179053600,-673.06,0.00016438,2]
[366298489,1750179053610,-633.85,0.00016438,2]
[366298491,1750179053621,-9288.49,0.00016438,2]
[366298493,1750179053631,-490.0,0.00016438,2]
[366298495,1750179053640,-3036.39,0.00016438,2]
[366298497,1750179053650,-1080.85,0.00016438,2]
[366298499,1750179053660,-579.34,0.00016438,2]
[366298501,1750179053671,-2620.73,0.00016438,2]
[366298503,1750179053680,-490.0,0.00016438,2]
[366298505,1750179053691,-490.0,0.00016438,2]
[366298507,1750179053701,-490.0,0.00016438,2]
[366298509,1750179053711,-490.0,0.00016438,2]
[366298511,1750179053722,-490.0,0.00016438,2]
[366298513,1750179053732,-490.0,0.00016438,2]
[366298515,1750179053742,-490.0,0.00016438,2]
[366298517,1750179053752,-1437.97,0.00016438,2]
[366298520,1750179053763,-1284.25,0.00016438,2]
[366298521,1750179053773,-490.0,0.00016438,2]
[366298523,1750179053785,-490.0,0.00016438,2]
[366298525,1750179053795,-688.59,0.00016438,2]
[366298528,1750179053805,-490.0,0.00016438,2]
[366298529,1750179053815,-490.0,0.00016438,2]
[366298532,1750179053825,-490.0,0.00016438,2]
[366298533,1750179053835,-6243.26,0.00016438,2]
[366298536,1750179053845,-1007.86,0.00016438,2]
[366298538,1750179053855,-509.67,0.00016438,2]
[366298540,1750179053865,-830.6,0.00016438,2]
[366298542,1750179053874,-1999.01,0.00016438,2]
[366298544,1750179053884,-490.0,0.00016438,2]
[366298546,1750179053894,-490.0,0.00016438,2]
[366298548,1750179053903,-1975.05,0.00016438,2]
[366298550,1750179053913,-490.0,0.00016438,2]
[366298552,1750179053924,-490.0,0.00016438,2]
[366298554,1750179053934,-490.0,0.00016438,2]
[366298556,1750179053945,-1654.4,0.00016438,2]
[366298558,1750179053954,-996.67,0.00016438,2]
[366298560,1750179053964,-490.0,0.00016438,2]
[366298562,1750179053974,-579.10620846,0.00016438,2]
[366298564,1750179053984,-490.0,0.00016438,2]
[366298565,1750179053993,-490.0,0.00016438,2]
[366298567,1750179054003,-822.46,0.00016438,2]
[366298569,1750179054012,-490.0,0.00016438,2]
[366298571,1750179054022,-151.0,0.00016438,2]
[366298573,1750179054032,-468.61126213,0.00016438,2]
[366298575,1750179054041,-10213.31,0.00016438,2]
[366298577,1750179054051,-490.0,0.00016438,2]
[366298580,1750179054061,-151.0,0.00016438,2]
[366298582,1750179054071,-490.0,0.00016438,2]
[366298584,1750179054081,-1189.4,0.00016438,2]
[366298586,1750179054091,-490.0,0.00016438,2]
[366298588,1750179054100,-151.0,0.00016438,2]
[366298590,1750179054110,-151.0,0.00016438,2]
[366298592,1750179054119,-151.0,0.00016438,2]
[366298594,1750179054129,-151.0,0.00016438,2]
[366298595,1750179054139,-490.0,0.00016438,2]
[366298597,1750179054148,-490.0,0.00016438,2]
[366298599,1750179054158,-490.0,0.00016438,2]
[366298601,1750179054167,-5958.53,0.00016438,2]
[366298604,1750179054177,-151.0,0.00016438,2]
[366298605,1750179054187,-304.59445371,0.00016438,2]
[366298608,1750179054199,-492.39564873,0.00016438,2]
[366298610,1750179054209,-151.0,0.00016438,2]
[366298612,1750179054219,-151.0,0.00016438,2]
[366298614,1750179054228,-490.0,0.00016438,2]
[366298616,1750179054238,-2573.53,0.00016438,2]
[366298618,1750179054247,-490.0,0.00016438,2]
[366298619,1750179054257,-151.0,0.00016438,2]
[366298621,1750179054267,-500.0,0.00016438,2]
[366298622,1750179054277,-810.28,0.00016438,2]
[366298623,1750179054288,-490.0,0.00016438,2]
[366298624,1750179054298,-151.0,0.00016438,2]
[366298625,1750179054308,-151.0,0.00016438,2]
[366298626,1750179054317,-490.0,0.00016438,2]
[366298627,1750179054327,-151.0,0.00016438,2]
[366298628,1750179054337,-490.0,0.00016438,2]
[366298629,1750179054347,-490.0,0.00016438,2]
[366298630,1750179054357,-151.0,0.00016438,2]
[366298631,1750179054367,-278.31923713,0.00016438,2]
[366298632,1750179054377,-850.25,0.00016438,2]
[366298634,1750179054387,-490.0,0.00016438,2]
[366298635,1750179054397,-490.0,0.00016438,2]
[366298637,1750179054407,-490.0,0.00016438,2]
[366298639,1750179054416,-490.0,0.00016438,2]
[366298641,1750179054426,-1770.11,0.00016438,2]
[366298643,1750179054436,-4946.44,0.00016438,2]
[366298645,1750179054450,-490.0,0.00016438,2]
[366298647,1750179054460,-1133.9,0.00016438,2]
[366298650,1750179054470,-490.0,0.00016438,2]
[366298652,1750179054481,-1827.49,0.00016438,2]
[366298653,1750179054494,-11308.25,0.00016438,2]
[366298656,1750179054504,-490.0,0.00016438,2]
[366298658,1750179054513,-490.0,0.00016438,2]
[366298659,1750179054522,-493.10579997,0.00016438,2]
[366298661,1750179054532,-500.0,0.00016438,2]
[366298663,1750179054542,-500.0,0.00016438,2]
[366298665,1750179054551,-490.0,0.00016438,2]
[366298667,1750179054562,-490.0,0.00016438,2]
[366298670,1750179054573,-500.0,0.00016438,2]
[366298672,1750179054582,-500.0,0.00016438,2]
[366298674,1750179054591,-1248.4,0.00016438,2]
[366298675,1750179054601,-490.0,0.00016438,2]
[366298677,1750179054610,-490.0,0.00016438,2]
[366298679,1750179054620,-500.0,0.00016438,2]
[366298681,1750179054629,-500.0,0.00016438,2]
[366298683,1750179054639,-4407.39,0.00016438,2]
[366298685,1750179054652,-490.0,0.00016438,2]
[366298688,1750179054663,-491.91314651,0.00016438,2]
[366298690,1750179054673,-500.0,0.00016438,2]
[366298692,1750179054683,-490.0,0.00016438,2]
[366298694,1750179054694,-490.0,0.00016438,2]
[366298695,1750179054703,-490.0,0.00016438,2]
[366298697,1750179054713,-300.0,0.00016438,2]
[366298699,1750179054722,-490.0,0.00016438,2]
[366298701,1750179054732,-6013.87,0.00016438,2]
[366298703,1750179054742,-490.0,0.00016438,2]
[366298705,1750179054751,-490.0,0.00016438,2]
[366298707,1750179054761,-6406.13,0.00016438,2]
[366298709,1750179054770,-1539.17,0.00016438,2]
[366298711,1750179054779,-860.76,0.00016438,2]
[366298713,1750179054789,-7865.34,0.00016438,2]
[366298715,1750179054799,-490.0,0.00016438,2]
[366298717,1750179054808,-490.0,0.00016438,2]
[366298719,1750179054818,-490.0,0.00016438,2]
[366298721,1750179054827,-490.0,0.00016438,2]
[366298724,1750179054838,-2711.75,0.00016438,2]
[366298726,1750179054847,-427.16042913,0.00016438,2]
[366298727,1750179054857,-490.0,0.00016438,2]
[366298730,1750179054866,-490.0,0.00016438,2]
[366298731,1750179054876,-490.0,0.00016438,2]
[366298733,1750179054885,-408.20005968,0.00016438,2]
[366298735,1750179054894,-805.32,0.00016438,2]
[366298737,1750179054904,-490.0,0.00016438,2]
[366298739,1750179054913,-490.0,0.00016438,2]
[366298741,1750179054923,-1156.33,0.00016438,2]
[366298743,1750179054932,-549.88,0.00016438,2]
[366298745,1750179054941,-860.81,0.00016438,2]
[366298747,1750179054951,-490.0,0.00016438,2]
[366298749,1750179054961,-490.0,0.00016438,2]
[366298751,1750179054970,-490.0,0.00016438,2]
[366298753,1750179054980,-490.0,0.00016438,2]
[366298755,1750179054990,-490.0,0.00016438,2]
[366298757,1750179054998,-490.0,0.00016438,2]
[366298759,1750179055008,-490.0,0.00016438,2]
[366298761,1750179055018,-448.745207,0.00016438,2]
[366298763,1750179055027,-1227.23,0.00016438,2]
[366298765,1750179055037,-2865.52,0.00016438,2]
[366298767,1750179055046,-151.0,0.00016438,2]
[366298769,1750179055054,-448.745207,0.00016438,2]
[366298771,1750179055064,-490.0,0.00016438,2]
[366298773,1750179055074,-1548.59,0.00016438,2]
[366298775,1750179055084,-151.0,0.00016438,2]
[366298777,1750179055094,-448.745207,0.00016438,2]
[366298779,1750179055103,-1203.87,0.00016438,2]